bitfinex/quotes_SOLUSD_20250922
["timestamp","ask_amount","ask_price","bid_price","bid_amount"]
[1758529656549,13.77798498,221.87,221.86,1e-08]
[1758529658050,9.31893304,221.87,221.86,1e-08]
[1758529658378,7.51024682,221.87,221.86,1e-08]
[1758529658573,4.50714382,221.87,221.86,1e-08]
[1758529658780,7.51024682,221.87,221.86,1e-08]
[1758529659171,4.50714382,221.87,221.86,1e-08]
[1758529659371,4.50714382,221.87,221.86,0.31000001]
[1758529659782,4.50714382,221.87,221.86,1e-08]
[1758529660274,5.21714382,221.87,221.86,1e-08]
[1758529661860,4.50714382,221.87,221.86,1e-08]
[1758529662066,4.50714382,221.87,221.86,0.31000001]
[1758529662285,3.003103,221.88,221.86,1e-08]
[1758529662483,4.50708543,221.88,221.86,0.31000001]
[1758529662692,7.50979146,221.9,221.87,0.31]
[1758529662985,3.003103,221.91,221.88,0.31]
[1758529663189,4.50592529,221.93,221.88,0.31]
[1758529663394,3.003103,221.94,221.88,0.31]
[1758529663572,3.003103,221.95,221.88,0.31]
[1758529663772,4.50505095,221.98,221.88,0.31]
[1758529664293,3.003103,222.01,221.88,0.31]
[1758529664294,15.76576576,222.0,221.88,0.31]
[1758529664492,3.003103,221.99,221.88,0.31]
[1758529665199,0.71,222.09,221.92,3.20049262]
[1758529665364,0.71,222.09,221.93,3.20049262]
[1758529665365,11.25682626,222.09,221.93,3.20049262]
[1758529666197,15.75950535,222.09,221.94,4.50572226]
[1758529666688,0.71,222.08,221.94,4.50572226]
[1758529666882,0.71,222.07,221.92,4.50612833]
[1758529667084,0.71,222.06,221.89,4.50673757]
[1758529667297,0.71,222.05,221.89,4.50673757]
[1758529667775,0.71,222.05,221.89,15.7735815]
[1758529667969,3.74905194,222.07,221.89,15.7735815]
[1758529668175,4.50328739,222.06,221.9,3.20049262]
[1758529668376,4.50328739,222.06,221.89,15.7735815]
[1758529668579,4.50328739,222.06,221.91,7.69938027]
[1758529668776,4.50328739,222.06,221.92,7.69938027]
[1758529668977,0.71,222.1,221.93,7.69938027]
[1758529669274,2.35437561,222.11,221.96,7.69938027]
[1758529669475,2.35437561,222.11,221.97,7.69938027]
[1758529669674,4.45905194,222.16,221.99,7.69938027]
[1758529669881,15.75393345,222.17,222.01,7.69938027]
[1758529670096,16.46393345,222.17,221.96,42.80018831]
[1758529670297,20.21298539,222.17,221.99,7.69938027]
[1758529670792,20.21298539,222.17,221.96,42.80018831]
[1758529671105,3.74905194,222.14,221.96,4.50531627]
[1758529671283,0.71,222.13,221.96,4.50531627]
[1758529671489,0.71,222.12,221.96,15.76860695]
[1758529672186,4.50146297,222.15,221.99,23.46585622]
[1758529673104,5.21127611,222.16,221.99,15.76647595]
[1758529673310,5.21127611,222.16,221.99,23.46585622]
[1758529673784,5.21127611,222.16,222.0,7.69938027]
[1758529674186,5.21127611,222.16,221.99,23.46585622]
[1758529674389,16.46442699,222.16,221.99,15.76647595]
[1758529674984,5.21127611,222.16,222.0,7.69938027]
[1758529675180,5.21127611,222.16,222.01,7.69938027]
[1758529675587,4.7008908,222.18,222.04,7.69938027]
[1758529675786,4.7008908,222.18,222.03,7.69938027]
[1758529675991,5.4108908,222.18,222.01,7.69938027]
[1758529676191,16.6630287,222.18,222.02,15.76434554]
[1758529676607,0.91,222.18,222.02,15.76434554]
[1758529676792,0.91,222.18,222.02,23.46372581]
[1758529676991,5.41091263,222.18,222.02,15.76434554]
[1758529678785,5.41091263,222.18,222.02,18.95962709]
[1758529679210,15.95305053,222.18,222.02,11.26024682]
[1758529679413,3.63848303,222.17,222.02,11.26024682]
[1758529679615,0.66,222.16,222.02,11.26024682]
[1758529680722,4.50146297,222.15,222.02,11.26024682]
[1758529681027,0.66,222.14,222.01,4.5043016]
[1758529681700,0.66,222.14,222.01,15.76505562]
[1758529681905,0.66,222.13,222.01,15.76505562]
[1758529682708,5.1620662,222.13,222.01,11.26075402]
[1758529683019,16.41673688,222.13,222.0,4.5045045]
[1758529683191,0.66,222.12,222.0,4.5045045]
[1758529683393,4.5020662,222.13,222.0,4.5045045]
[1758529683815,5.1620662,222.13,222.0,15.76576576]
[1758529684107,4.5020662,222.13,222.0,15.76576576]
[1758529684703,4.5020662,222.13,222.0,11.26126126]
[1758529684900,0.66,222.14,222.0,11.26126126]
[1758529685100,0.66,222.14,222.0,18.96064153]
[1758529685314,15.75585964,222.14,221.99,4.50470741]
[1758529685499,3.63029776,222.13,221.99,4.50470741]
[1758529685701,0.66,222.13,221.99,4.50470741]
[1758529685906,0.66,222.13,221.99,15.76647595]
[1758529686501,15.75585964,222.14,221.99,230.76647595]
[1758529686702,15.75724833,222.12,221.99,230.76647595]
[1758529686918,0.66,222.11,221.97,4.50499403]
[1758529687211,0.66,222.1,221.97,4.50499403]
[1758529687712,0.66,222.1,221.97,15.76777728]
[1758529688718,4.50267909,222.09,221.97,11.26278325]
[1758529689614,2.9694761,222.11,221.97,11.26278325]
[1758529689815,5.16188282,222.13,221.99,3.1916976]
[1758529690610,5.16188282,222.13,221.98,3.1916976]
[1758529690919,5.16188282,222.13,221.99,15.76647595]
[1758529691117,2.9694761,222.14,221.99,15.76647595]
[1758529691118,7.47127046,222.14,222.01,3.1916976]
[1758529691324,4.50179436,222.14,222.01,3.1916976]
[1758529692400,0.66,222.15,222.01,3.1916976]
[1758529693108,5.16149269,222.15,222.02,15.76434554]
[1758529693315,5.13350702,222.15,222.03,0.03]
[1758529694623,5.13350702,222.15,222.03,3.2216976]
[1758529694926,0.2,222.18,222.07,3.1916976]
[1758529695223,4.70085924,222.18,222.08,0.03]
[1758529695522,5.38085924,222.18,222.08,0.03]
[1758529696215,5.38085924,222.18,222.07,215.0]
[1758529696415,0.68,222.17,222.07,215.0]
[1758529696594,4.50146297,222.15,222.07,80.6]
[1758529696799,0.68,222.14,222.04,4.5035288]
[1758529696996,0.68,222.13,222.04,4.5035288]
[1758529697207,0.68,222.12,222.04,4.5035288]
[1758529697408,0.68,222.12,222.04,4.5335288]
[1758529697796,0.68,222.12,222.04,15.79276137]
[1758529698720,5.18214113,222.12,222.04,0.03]
[1758529699520,0.68,222.12,222.04,0.03]
[1758529699702,5.18207164,222.12,222.04,0.03]
[1758529700113,38.94760378,222.12,221.92,4.50597582]
[1758529700321,3.65602214,222.11,221.92,4.50597582]
[1758529700524,0.68,222.1,221.92,4.50597582]
[1758529700728,0.68,222.09,221.91,0.03]
[1758529700908,3.65602214,222.09,221.91,0.03]
[1758529701432,3.65602214,222.09,221.88,0.03]
[1758529702310,38.27449567,222.08,221.88,0.03]
[1758529702631,3.74905194,222.06,221.86,1e-08]
[1758529702807,2.97602214,222.05,221.86,1e-08]
[1758529703116,3.65602214,222.05,221.86,1e-08]
[1758529703321,38.28311487,222.03,221.86,1e-08]
[1758529703505,2.97602214,222.02,221.86,1e-08]
[1758529703708,3.65602214,222.02,221.86,1e-08]
[1758529704221,2.97602214,222.01,221.86,1e-08]
[1758529704418,4.50470741,221.99,221.86,1e-08]
[1758529704607,7.48072955,221.99,221.86,1e-08]
[1758529704804,0.68,221.98,221.86,1e-08]
[1758529705430,3.65602214,221.98,221.86,1e-08]
[1758529706208,4.50531627,221.96,221.86,1e-08]
[1758529706608,0.68,221.95,221.86,1e-08]
[1758529707226,3.65602214,221.95,221.86,1e-08]
[1758529707754,0.68,221.95,221.86,0.03000001]
[1758529708719,3.65602214,221.95,221.86,0.03000001]
[1758529708916,0.68,221.95,221.86,0.03000001]
[1758529709523,2.97602214,221.97,221.86,0.03000001]
[1758529709727,0.72,221.97,221.86,3.22169761]
[1758529709917,0.72,221.97,221.87,0.03]
[1758529710411,0.72,221.97,221.86,1e-08]
[1758529711012,2.97602214,221.96,221.86,1e-08]
[1758529711229,0.72,221.97,221.86,1e-08]
[1758529712536,5.22511417,221.97,221.86,1e-08]
[1758529713433,5.22511417,221.97,221.86,215.00000001]
[1758529713739,0.72,221.96,221.87,15.77500337]
[1758529713926,0.72,221.95,221.87,15.77500337]
[1758529714319,0.72,221.94,221.87,15.77500337]
[1758529715549,4.50539605,221.96,221.87,15.77500337]
[1758529715854,0.72,221.93,221.87,15.77500337]
[1758529716019,0.72,221.93,221.87,230.77500337]
[1758529716221,0.72,221.98,221.88,0.03]
[1758529716449,0.72,221.98,221.88,215.03]
[1758529716634,0.72,221.97,221.89,15.7735815]
[1758529717142,2.97602214,222.02,221.89,15.7735815]
[1758529717438,0.72,222.01,221.89,15.7735815]
[1758529717627,0.72,222.0,221.89,15.7735815]
[1758529717829,0.72,221.99,221.89,15.7735815]
[1758529718344,0.72,221.98,221.89,15.7735815]
[1758529718638,0.72,221.97,221.89,15.7735815]
[1758529720141,0.72,221.97,221.89,15.8035815]
[1758529722034,0.72,221.96,221.89,15.7735815]
[1758529722227,0.72,221.96,221.89,230.7735815]
[1758529722830,0.72,221.96,221.89,230.8035815]
[1758529723740,0.72,221.95,221.89,219.50673757]
[1758529723949,0.72,221.94,221.86,11.26802311]
[1758529724238,4.5049071,221.99,221.86,11.26802311]
[1758529724239,0.72,221.93,221.86,11.26802311]
[1758529724545,0.72,221.93,221.87,15.77500337]
[1758529725541,0.72,221.93,221.86,1e-08]
[1758529728330,5.22594107,221.93,221.86,1e-08]
[1758529729636,20.14020086,221.93,221.86,1e-08]
[1758529729827,2.97602214,221.92,221.86,1e-08]
[1758529730444,0.72,221.91,221.86,1e-08]
[1758529732061,5.22652043,221.91,221.86,1e-08]
[1758529733525,16.49234891,221.91,221.86,1e-08]
[1758529735169,2.99601525,221.9,221.86,1e-08]
[1758529735451,4.50673757,221.89,221.86,1e-08]
[1758529735636,5.22673757,221.89,221.86,1e-08]
[1758529736555,0.72,221.89,221.86,1e-08]
[1758529737957,7.50217789,221.92,221.86,1e-08]
[1758529738150,0.72,221.89,221.86,1e-08]
[1758529738552,7.50217789,221.92,221.86,1e-08]
[1758529738553,0.72,221.88,221.86,1e-08]
[1758529739155,3.64944657,221.93,221.86,1e-08]
[1758529739156,0.72,222.05,221.88,65.102]
[1758529739452,4.50166561,222.14,222.01,2.0438394]
[1758529739661,11.25288562,222.17,222.02,2.3638394]
[1758529739856,11.25288562,222.17,222.02,0.32]
[1758529740156,14.86314355,222.17,222.02,0.32]
[1758529740459,14.86314355,222.17,222.02,2.3638394]
[1758529740751,19.36420129,222.17,222.03,4.50389586]
[1758529741457,0.72,222.16,222.03,15.76363553]
[1758529741638,0.72,222.15,222.03,15.76363553]
[1758529741847,0.72,222.14,222.03,15.76363553]
[1758529742044,0.72,222.13,222.03,15.76363553]
[1758529742636,0.72,222.16,222.04,0.32]
[1758529742841,0.92,222.18,222.04,0.32]
[1758529743355,0.92,222.18,222.1,2.0438394]
[1758529743536,0.92,222.18,222.1,2.3638394]
[1758529745039,0.92,222.18,222.11,15.75795776]
[1758529745961,0.2,222.18,222.11,15.75795776]
[1758529746141,0.2,222.18,222.12,0.32]
[1758529746966,0.2,222.18,222.13,2.0438394]
[1758529747147,0.2,222.18,222.11,15.75795776]
[1758529747148,0.2,222.18,222.14,15.75582965]
[1758529747547,0.2,222.18,222.14,16.07582965]
[1758529749062,0.2,222.18,222.15,0.32]
[1758529749258,0.2,222.18,222.16,0.32]
[1758529749454,0.2,222.18,222.14,17.79966905]
[1758529749752,0.2,222.18,222.17,0.32]
[1758529750241,0.2,222.18,222.14,17.79966905]
[1758529750449,0.2,222.18,222.15,0.32]
[1758529750657,0.2,222.18,222.16,4.82126035]
[1758529751345,0.2,222.18,222.16,85.42126035]
[1758529751543,0.2,222.18,222.16,85.10126035]
[1758529752059,0.2,222.18,222.16,85.42126035]
[1758529752263,0.2,222.18,222.16,85.10126035]
[1758529753153,0.2,222.18,222.16,80.6]
[1758529753154,0.72,222.17,222.16,80.6]
[1758529753359,0.72,222.17,222.12,4.5019601]
[1758529753542,0.72,222.16,222.12,4.5019601]
[1758529753859,0.2,222.18,222.12,4.5019601]
[1758529754756,0.2,222.18,222.12,15.75713748]
[1758529756163,0.2,222.18,222.11,80.6]
[1758529756164,0.72,222.17,222.11,80.6]
[1758529756460,0.72,222.16,222.11,80.6]
[1758529756651,0.72,222.15,222.11,80.6]
[1758529756963,0.72,222.14,222.11,80.6]
[1758529757168,0.72,222.13,222.11,80.6]
[1758529757466,4.50112655,222.17,222.11,80.6]
[1758529757635,0.72,222.16,222.11,85.10223725]
[1758529757841,0.72,222.15,222.11,85.10223725]
[1758529758041,0.72,222.14,222.11,85.10223725]
[1758529760060,4.70087119,222.18,222.11,85.10223725]
[1758529760245,0.72,222.14,222.11,85.10223725]
[1758529760763,0.72,222.13,222.11,80.6]
[1758529760960,0.72,222.12,222.11,80.6]
[1758529767978,5.22207095,222.12,222.11,80.6]
[1758529770075,0.72,222.12,222.11,80.6]
[1758529770563,5.22207095,222.12,222.11,80.6]
[1758529771956,16.47724833,222.12,222.07,80.6]
[1758529772155,16.47724833,222.12,221.98,134.72]
[1758529772156,0.65,222.11,222.04,80.6]
[1758529772373,0.65,222.1,222.04,80.6]
[1758529772574,15.75724833,222.12,222.04,80.6]
[1758529772575,0.65,222.09,222.04,80.6]
[1758529772757,0.65,222.08,222.04,80.6]
[1758529772957,0.65,222.07,222.04,80.6]
[1758529773474,4.50292347,222.08,222.04,80.6]
[1758529773666,0.65,222.06,222.04,80.6]
[1758529773976,0.65,222.13,222.05,0.32]
[1758529774183,0.2,222.18,222.05,0.32]
[1758529774184,0.65,222.15,222.05,80.92]
[1758529774478,0.65,222.17,222.06,2.3638394]
[1758529774674,0.65,222.17,222.07,0.32]
[1758529775375,4.50126035,222.16,222.08,4.50288184]
[1758529775588,0.65,222.15,222.08,4.50288184]
[1758529776577,0.65,222.17,222.09,0.32]
[1758529777081,0.65,222.17,222.09,80.92]
[1758529777572,0.65,222.17,222.1,4.50247636]
[1758529777774,0.65,222.17,222.1,96.35866726]
[1758529777978,0.2,222.18,222.1,96.35866726]
[1758529778161,0.2,222.18,222.11,0.32]
[1758529778572,0.2,222.18,222.11,80.92]
[1758529778782,0.2,222.18,222.12,0.32]
[1758529779477,0.2,222.18,222.13,4.50186827]
[1758529779680,0.2,222.18,222.13,4.82186827]
[1758529779887,0.2,222.18,222.13,4.50186827]
[1758529780176,0.2,222.18,222.13,4.82186827]
[1758529780485,0.2,222.18,222.14,0.32]
[1758529780670,0.2,222.18,222.15,4.50146297]
[1758529780860,0.2,222.18,222.15,85.10146297]
[1758529781380,0.2,222.18,222.15,80.6]
[1758529781567,0.65,222.17,222.15,80.6]
[1758529781767,0.2,222.18,222.15,80.6]
[1758529781968,0.65,222.16,222.15,80.6]
[1758529782271,0.85,222.18,222.15,80.6]
[1758529782473,0.65,222.17,222.15,80.6]
[1758529782669,0.2,222.18,222.15,80.6]
[1758529782982,0.2,222.18,222.15,85.10128682]
[1758529783760,0.65,222.17,222.15,80.6]
[1758529784460,0.2,222.18,222.15,80.6]
[1758529784663,0.2,222.18,222.15,85.10138167]
[1758529785091,0.2,222.18,222.15,85.42138167]
[1758529785273,0.2,222.18,222.15,80.6]
[1758529785679,0.85,222.18,222.15,80.6]
[1758529785878,0.65,222.17,222.15,80.6]
[1758529786392,0.65,222.16,222.15,80.6]
[1758529786709,2.98099467,222.16,221.92,204.0]
[1758529786870,2.98099467,222.15,221.98,0.65]
[1758529787060,2.98099467,222.14,221.98,0.65]
[1758529787261,3.40099467,222.13,221.98,0.65]
[1758529787595,2.98099467,222.12,221.98,0.65]
[1758529787888,4.50247636,222.1,221.98,0.65]
[1758529788095,0.42,222.09,221.98,5.15490844]
[1758529788390,3.40099467,222.09,221.98,0.65]
[1758529788777,0.42,222.08,221.98,5.15484528]
[1758529789387,0.42,222.08,221.99,0.65]
[1758529790161,4.50308461,222.07,221.99,0.65]
[1758529790365,7.48407928,222.07,221.99,0.65]
[1758529790678,18.74179081,222.07,221.99,0.65]
[1758529790877,0.42,222.06,221.99,0.65]
[1758529791084,0.42,222.06,221.96,0.65]
[1758529791882,3.41781153,222.06,221.96,0.65]
[1758529792388,16.18221571,222.05,221.96,0.65]
[1758529792591,16.18221571,222.05,221.96,27.49143487]
[1758529794794,0.42,222.04,221.96,26.84143487]
[1758529795085,0.42,222.03,221.96,26.84143487]
[1758529795668,0.42,222.03,221.95,0.65]
[1758529795877,4.50409872,222.02,221.95,0.65]
[1758529796790,18.75901904,222.02,221.93,27.49143487]
[1758529797090,15.76434554,222.02,221.93,27.49143487]
[1758529797491,16.18434554,222.02,221.93,27.49143487]
[1758529798067,16.18434554,222.02,221.93,26.84143487]
[1758529798068,15.76434554,222.02,221.93,26.84143487]
[1758529798269,0.42,222.05,221.94,0.69]
[1758529798875,0.42,222.04,221.94,0.69]
[1758529799666,0.42,222.03,221.94,0.69]
[1758529800476,0.42,222.02,221.94,0.69]
[1758529800674,0.42,222.01,221.93,26.84143487]
[1758529801278,0.42,222.01,221.92,204.79]
[1758529801279,0.42,222.0,221.92,204.1]
[1758529801479,0.42,221.99,221.92,204.1]
[1758529801694,15.76789655,221.97,221.92,204.1]
[1758529801892,2.99367758,221.96,221.92,204.1]
[1758529802078,0.42,221.95,221.92,204.1]
[1758529802284,0.42,221.94,221.92,204.1]
[1758529802591,0.42,221.93,221.92,204.1]
[1758529803894,17.84154342,221.94,221.92,204.1]
[1758529804106,4.50572226,221.94,221.92,204.1]
[1758529805773,3.71904412,222.08,221.93,0.69]
[1758529805976,0.67,222.07,221.93,0.69]
[1758529806181,3.6504524,222.07,221.93,0.69]
[1758529806983,7.34451381,222.07,221.93,0.69]
[1758529807485,7.34451381,222.07,221.92,204.1]
[1758529807679,15.76221571,222.05,221.92,204.1]
[1758529807882,3.6504524,222.04,221.92,204.1]
[1758529808191,0.67,222.03,221.92,204.1]
[1758529808389,0.67,222.02,221.92,204.1]
[1758529808594,0.67,222.01,221.92,204.1]
[1758529808794,2.97823713,222.04,221.92,204.1]
[1758529808795,0.67,222.0,221.92,204.1]
[1758529808975,2.97823713,222.04,221.92,204.1]
[1758529809180,0.67,222.03,221.92,204.1]
[1758529809406,0.67,222.02,221.92,204.1]
[1758529809576,0.67,222.01,221.92,204.1]
[1758529809782,0.67,222.0,221.92,204.1]
[1758529809981,0.67,221.99,221.92,204.1]
[1758529810804,0.67,221.98,221.92,204.1]
[1758529811795,15.76505562,222.01,221.92,204.1]
[1758529812007,3.64823713,222.0,221.92,204.1]
[1758529812500,3.64823713,222.0,221.92,204.8]
[1758529813283,0.72,221.99,221.92,204.8]
[1758529813483,0.72,221.99,221.92,204.1]
[1758529814099,15.76718623,221.98,221.92,204.8]
[1758529814296,2.97823713,221.97,221.92,204.8]
[1758529814481,2.97823713,221.97,221.93,0.7]
[1758529814686,2.97823713,221.97,221.92,204.1]
[1758529814885,2.97823713,221.97,221.93,0.7]
[1758529815505,2.97823713,221.97,221.94,0.7]
[1758529816396,4.50531627,221.96,221.94,0.7]
[1758529816593,4.50531627,221.96,221.92,204.1]
[1758529816594,15.76860695,221.96,221.92,204.1]
[1758529816794,0.72,221.95,221.92,152.0239457]
[1758529816991,0.72,221.94,221.92,152.0239457]
[1758529817187,2.9684082,221.95,221.92,152.0239457]
[1758529817391,16.48860695,221.96,221.92,152.7239457]
[1758529817392,15.76860695,221.96,221.92,152.7239457]
[1758529817596,15.76860695,221.96,221.93,0.7]
[1758529817800,15.76860695,221.96,221.94,0.7]
[1758529818000,15.76860695,221.96,221.92,152.0239457]
[1758529818203,15.76860695,221.96,221.93,0.7]
[1758529818400,38.28656366,222.01,221.94,0.7]
[1758529818706,2.96818481,222.0,221.94,0.7]
[1758529819708,0.72,221.99,221.92,152.0239457]
[1758529820411,15.76718623,221.98,221.93,0.7]
[1758529820714,15.76718623,221.98,221.94,0.7]
[1758529820914,15.76718623,221.98,221.95,0.7]
[1758529821118,15.76718623,221.98,221.92,152.0239457]
[1758529821423,15.76718623,221.98,221.92,152.7239457]
[1758529821921,15.76718623,221.98,221.93,0.7]
[1758529822094,4.50491035,221.98,221.93,0.7]
[1758529822293,4.50491035,221.98,221.94,0.7]
[1758529822509,11.26202888,221.99,221.95,0.7]
[1758529822815,11.26202888,221.99,221.96,0.7]
[1758529823200,11.26202888,221.99,221.97,0.7]
[1758529823390,11.26202888,221.99,221.98,0.7]
[1758529823595,4.5043016,222.01,221.98,0.7]
[1758529823895,4.5043016,222.01,221.99,0.7]
[1758529824097,15.76316511,222.04,221.97,0.7]
[1758529824296,2.97046284,222.03,221.97,0.7]
[1758529824510,4.50409872,222.02,221.97,0.7]
[1758529824715,15.76434554,222.02,221.97,0.7]
[1758529825013,15.76434554,222.02,221.98,0.7]
[1758529825794,15.76434554,222.02,221.99,0.7]
[1758529826012,15.76434554,222.02,221.92,156.53005238]
[1758529826206,15.76434554,222.02,221.93,0.7]
[1758529826406,23.23699623,222.06,221.94,4.50572226]
[1758529826407,11.25899439,222.05,221.94,4.50572226]
[1758529826616,11.25899439,222.05,221.95,0.7]
[1758529826819,2.97435924,222.04,221.95,0.7]
[1758529827092,2.97435924,222.04,221.92,152.0239457]
[1758529827093,0.72,222.03,221.92,152.0239457]
[1758529827296,0.72,222.02,221.92,152.6839457]
[1758529827494,0.72,222.01,221.92,152.6839457]
[1758529828415,15.76363553,222.03,221.93,0.66]
[1758529828622,2.97435924,222.02,221.93,0.66]
[1758529828805,3.69435924,222.02,221.93,0.66]
[1758529830400,15.76576576,222.0,221.92,152.0239457]
[1758529830609,3.69435924,221.99,221.92,152.0239457]
[1758529830807,3.69435924,221.98,221.92,152.0239457]
[1758529831037,0.72,221.97,221.92,152.0239457]
[1758529831349,3.69435924,221.96,221.92,152.0239457]
[1758529831514,3.69435924,221.95,221.92,152.0239457]
[1758529831828,3.69435924,221.94,221.92,152.0239457]
[1758529832012,0.72,221.94,221.92,152.0239457]
[1758529832421,8.20028453,221.93,221.92,152.0239457]
[1758529832622,5.22592529,221.93,221.92,152.0239457]
[1758529832917,5.22592529,221.93,221.92,79.70700592]
[1758529833844,4.50592529,221.93,221.92,79.70700592]
[1758529835117,4.50592529,221.93,221.92,80.36700592]
[1758529835314,4.50592529,221.93,221.92,79.70700592]
[1758529836912,5.22592529,221.93,221.86,0.66000001]
[1758529837129,2.97435924,221.92,221.86,1e-08]
[1758529837532,3.69435924,221.92,221.86,1e-08]
[1758529838231,2.97435924,221.92,221.86,0.66000001]
[1758529838818,4.50633139,221.91,221.86,0.66000001]
[1758529839022,7.48048892,221.92,221.86,0.66000001]
[1758529839237,4.50612968,221.92,221.86,0.66000001]
[1758529839836,4.50612968,221.92,221.86,5.16733891]
[1758529840141,4.50612968,221.92,221.87,0.66]
[1758529841029,4.50531627,221.96,221.87,0.66]
[1758529841235,7.47967551,221.96,221.87,0.66]
[1758529842023,2.97435924,221.96,221.87,5.16711424]
[1758529842321,4.50514012,221.97,221.88,0.66]
[1758529842533,16.48792337,221.97,221.88,0.66]
[1758529842833,2.97435924,221.96,221.88,0.66]
[1758529843137,15.76931741,221.95,221.88,0.66]
[1758529843340,2.97435924,221.94,221.88,0.66]
[1758529844737,2.97435924,221.94,221.86,1e-08]
[1758529844738,3.69435924,221.94,221.86,1e-08]
[1758529845041,15.77073851,221.93,221.86,1e-08]
[1758529845228,2.97435924,221.92,221.86,1e-08]
[1758529845828,3.69435924,221.92,221.86,1e-08]
[1758529847022,15.77287065,221.9,221.8,0.1]
[1758529847236,3.69435924,221.89,221.76,0.1]
[1758529847543,2.97435924,221.88,221.76,0.1]
[1758529847842,2.97435924,221.87,221.76,0.1]
[1758529848052,2.97435924,221.86,221.76,0.1]
[1758529848222,2.97435924,221.86,221.76,0.76]
[1758529848423,2.97435924,221.89,221.76,5.26931489]
[1758529848643,2.97435924,221.89,221.77,0.66]
[1758529849236,15.7742924,221.88,221.77,0.66]
[1758529849428,2.97435924,221.87,221.77,0.66]
[1758529849625,2.97435924,221.87,221.77,5.16914595]
[1758529849848,2.97435924,221.87,221.77,4.50914595]
[1758529850151,2.97435924,221.87,221.78,0.66]
[1758529850850,4.50734697,221.86,221.78,0.66]
[1758529851031,2.97435924,221.87,221.78,0.66]
[1758529851032,2.97435924,221.87,221.78,5.16892342]
[1758529851231,4.50653447,221.9,221.79,0.66]
[1758529851752,15.77287065,221.9,221.79,0.66]
[1758529851950,2.97435924,221.89,221.79,0.66]
[1758529852754,3.69435924,221.89,221.79,0.66]
[1758529852957,4.50694068,221.88,221.79,0.66]
[1758529853258,4.50694068,221.88,221.79,5.16875618]
[1758529853831,4.50694068,221.88,221.8,0.66]
[1758529854757,4.50694068,221.88,221.8,5.16854053]
[1758529855061,2.97435924,221.89,221.81,0.66]
[1758529855247,2.97435924,221.91,221.81,0.66]
[1758529855454,4.50654498,221.9,221.81,0.66]
[1758529856549,4.50654498,221.9,221.81,5.16826956]
[1758529856744,4.50654498,221.9,221.82,0.66]
[1758529857135,5.20654498,221.9,221.82,0.66]
[1758529858338,5.20654498,221.9,221.82,5.16814743]
[1758529858655,4.50654498,221.9,221.83,0.68]
[1758529859230,2.97435924,221.91,221.83,0.68]
[1758529859431,4.50632548,221.92,221.83,0.68]
[1758529859651,4.50586663,221.94,221.83,0.68]
[1758529860048,2.97435924,221.95,221.83,0.68]
[1758529860267,3.67435924,221.98,221.83,0.68]
[1758529860463,4.50532797,221.96,221.84,15.77713666]
[1758529860635,4.50532797,221.96,221.85,0.68]
[1758529861035,0.7,221.95,221.85,0.68]
[1758529862533,2.99637815,221.96,221.86,15.7757144]
[1758529862736,4.5051133,221.97,221.87,0.68]
[1758529863531,0.7,221.96,221.87,0.68]
[1758529864336,4.50551926,221.95,221.88,4.50694068]
[1758529864668,4.50551926,221.95,221.87,0.68]
[1758529865243,4.50551926,221.95,221.87,81.28]
[1758529865762,4.50551926,221.95,221.87,85.78714197]
[1758529865936,2.99637815,221.97,221.88,5.18680931]
[1758529866259,2.99637815,221.98,221.89,0.68]
[1758529866460,4.50451155,222.0,221.89,0.68]
[1758529866652,4.50451155,222.0,221.89,81.28]
[1758529866839,0.7,221.99,221.89,80.6]
[1758529867036,0.7,221.98,221.89,80.6]
[1758529867241,0.7,221.97,221.89,80.6]